Workbook

Sheet メニュー

Sheet 現金
C5: 収入金額 | E5: 支出金額
B6: 合計 | C6: =SUM(C9:C1048576) -> 117000 | E6: =SUM(E9:E1048576) -> 115500
A8: 日付 | B8: 事業名 | C8: 収入 | D8: 収入科目 | E8: 支出 | F8: 支出科目 | G8: 補助金適用 | H8: 摘要１ | I8: 摘要２ | J8: メッセージ
A9: 2016-04-10 | B9: 団体の運営事業 | C9: 5000 | D9: 会費 | G9: 対象外 | H9: 1,000円×50名分 | I9: 平成28年度正会員会費
A10: 2016-04-20 | B10: ★春の研修会 | C10: 25000 | D10: 事業収入 | G10: 補助金対象 | H10: 500円×25名分
A11: 2016-04-20 | B11: ★春の研修会 | E11: 25000 | F11: 報償費 | G11: 補助金対象 | I11: 市川先生講師代
A12: 2016-04-21 | B12: ★春の研修会 | E12: 2500 | F12: 使用及び賃借料 | G12: 補助金対象 | H12: 領収書№1 | I12: 市川公民館使用料
A13: 2016-04-23 | B13: ★春の研修会 | C13: 50000 | D13: 補助金収入 | G13: 補助金対象 | I13: 市川市市民活動団体事業補助金
A14: 2016-04-30 | B14: 団体の運営事業 | C14: 15000 | D14: 社会福祉協議会 支援金 | G14: 対象外
A15: 2016-05-01 | B15: ★春の研修会 | E15: 6000 | F15: 保険料 | G15: 補助金対象 | I15: ボランティア保険加入料
A16: 2016-05-11 | B16: 団体の運営事業 | C16: 20000 | D16: 寄附金収入 | G16: 対象外
A17: 2016-06-10 | B17: ★春の研修会 | E17: 2000 | F17: 印刷製本費 | G17: 補助金対象
A18: 2016-06-10 | B18: ★春の研修会 | E18: 1500 | F18: 消耗品 | G18: 補助金対象 | I18: テキスト用用紙
A19: 2016-06-10 | B19: 定例会 | E19: 1000 | F19: 使用及び賃借料 | G19: 対象外 | I19: 中央公民館使用料
A20: 2016-06-10 | B20: 定例会 | E20: 1500 | F20: 食糧費 | G20: 対象外 | I20: お茶菓子代
A21: 2016-10-01 | B21: ★秋の研修会 | E21: 8000 | F21: 消耗品 | G21: 補助金対象 | I21: パネル、文具
A22: 2016-11-01 | B22: ★秋の研修会 | E22: 50000 | F22: 報償費 | G22: 補助金対象 | I22: 八幡先生講師代
A23: 2016-11-01 | B23: ★秋の研修会 | E23: 10000 | F23: 報償費 | G23: 対象外 | I23: 八幡先生講師代
A24: 2016-11-01 | B24: ★秋の研修会 | E24: 8000 | F24: 使用及び賃借料 | G24: 補助金対象 | I24: 文化会館使用料
A25: 2016-11-18 | B25: ★秋の研修会 | C25: 2000 | D25: 事業収入 | G25: 補助金対象
A26: 2016-11-25 | J26: 事業名を入れて下さい

Sheet 月別収支
A5: 事業名 | B5: (すべて)
A7: 合計 / 収入 | B7: 日付
A8: 収入科目 | B8: 4月 | C8: 5月 | D8: 11月 | E8: 総計
A9: 会費 | B9: 5000 | E9: 5000
A10: 事業収入 | B10: 25000 | D10: 2000 | E10: 27000
A11: 補助金収入 | B11: 50000 | E11: 50000
A12: 社会福祉協議会 支援金 | B12: 15000 | E12: 15000
A13: 寄附金収入 | C13: 20000 | E13: 20000
A14: 総計 | B14: 95000 | C14: 20000 | D14: 2000 | E14: 117000
A28: 事業名 | B28: (すべて)
A30: 合計 / 支出 | B30: 日付
A31: 支出科目 | B31: 4月 | C31: 5月 | D31: 6月 | E31: 10月 | F31: 11月 | G31: 総計
A32: 報償費 | B32: 25000 | F32: 60000 | G32: 85000
A33: 使用及び賃借料 | B33: 2500 | D33: 1000 | F33: 8000 | G33: 11500
A34: 保険料 | C34: 6000 | G34: 6000
A35: 印刷製本費 | D35: 2000 | G35: 2000
A36: 消耗品 | D36: 1500 | E36: 8000 | G36: 9500
A37: 食糧費 | D37: 1500 | G37: 1500
A38: 総計 | B38: 27500 | C38: 6000 | D38: 6000 | E38: 8000 | F38: 68000 | G38: 115500

Sheet 収支合計
A1: 【収入の部】 | D1: (単位：円）
A2: 科目 | B2: 金額 | C2: 事業別 | D2: 金額
A3: =IF(入力項目リスト!$A2="","",入力項目リスト!$A2) -> 事業収入 | B3: =SUMIF(現金!$D$9:$D$1177,$A3,現金!$C$9:$C$1177) -> 27000 | C3: =IF(入力項目リスト!$A34="","",入力項目リスト!$A34) -> ★春の研修会 | D3: =SUMIF(現金!$B$9:$B$1177,$C3,現金!$C$9:$C$1177) -> 75000
A4: =IF(入力項目リスト!$A3="","",入力項目リスト!$A3) -> 寄附金収入 | B4: =SUMIF(現金!$D$9:$D$1177,$A4,現金!$C$9:$C$1177) -> 20000 | C4: =IF(入力項目リスト!$A35="","",入力項目リスト!$A35) -> ★秋の研修会 | D4: =SUMIF(現金!$B$9:$B$1177,$C4,現金!$C$9:$C$1177) -> 2000
A5: =IF(入力項目リスト!$A4="","",入力項目リスト!$A4) -> 補助金収入 | B5: =SUMIF(現金!$D$9:$D$1177,$A5,現金!$C$9:$C$1177) -> 50000 | C5: =IF(入力項目リスト!$A36="","",入力項目リスト!$A36) -> 定例会 | D5: =SUMIF(現金!$B$9:$B$1177,$C5,現金!$C$9:$C$1177) -> 0
A6: =IF(入力項目リスト!$A5="","",入力項目リスト!$A5) -> その他（助成金等） | B6: =SUMIF(現金!$D$9:$D$1177,$A6,現金!$C$9:$C$1177) -> 0 | C6: =IF(入力項目リスト!$A37="","",入力項目リスト!$A37) -> 団体の運営事業 | D6: =SUMIF(現金!$B$9:$B$1177,$C6,現金!$C$9:$C$1177) -> 40000
A7: =IF(入力項目リスト!$A6="","",入力項目リスト!$A6) -> 会費充当 | B7: =SUMIF(現金!$D$9:$D$1177,$A7,現金!$C$9:$C$1177) -> 0 | C7: =IF(入力項目リスト!$A38="","",入力項目リスト!$A38) ->  | D7: =SUMIF(現金!$B$9:$B$1177,$C7,現金!$C$9:$C$1177) -> 0
A8: =IF(入力項目リスト!$A7="","",入力項目リスト!$A7) -> 会費 | B8: =SUMIF(現金!$D$9:$D$1177,$A8,現金!$C$9:$C$1177) -> 5000 | C8: =IF(入力項目リスト!$A39="","",入力項目リスト!$A39) ->  | D8: =SUMIF(現金!$B$9:$B$1177,$C8,現金!$C$9:$C$1177) -> 0
A9: =IF(入力項目リスト!$A8="","",入力項目リスト!$A8) -> 社会福祉協議会 支援金 | B9: =SUMIF(現金!$D$9:$D$1177,$A9,現金!$C$9:$C$1177) -> 15000 | C9: =IF(入力項目リスト!$A40="","",入力項目リスト!$A40) ->  | D9: =SUMIF(現金!$B$9:$B$1177,$C9,現金!$C$9:$C$1177) -> 0
A10: =IF(入力項目リスト!$A9="","",入力項目リスト!$A9) -> 生命保険団体 助成金 | B10: =SUMIF(現金!$D$9:$D$1177,$A10,現金!$C$9:$C$1177) -> 0 | C10: =IF(入力項目リスト!$A41="","",入力項目リスト!$A41) ->  | D10: =SUMIF(現金!$B$9:$B$1177,$C10,現金!$C$9:$C$1177) -> 0
A11: =IF(入力項目リスト!$A10="","",入力項目リスト!$A10) ->  | B11: =SUMIF(現金!$D$9:$D$1177,$A11,現金!$C$9:$C$1177) -> 0 | C11: =IF(入力項目リスト!$A42="","",入力項目リスト!$A42) ->  | D11: =SUMIF(現金!$B$9:$B$1177,$C11,現金!$C$9:$C$1177) -> 0
A12: =IF(入力項目リスト!$A11="","",入力項目リスト!$A11) ->  | B12: =SUMIF(現金!$D$9:$D$1177,$A12,現金!$C$9:$C$1177) -> 0 | C12: =IF(入力項目リスト!$A43="","",入力項目リスト!$A43) ->  | D12: =SUMIF(現金!$B$9:$B$1177,$C12,現金!$C$9:$C$1177) -> 0
A13: =IF(入力項目リスト!$A12="","",入力項目リスト!$A12) ->  | B13: =SUMIF(現金!$D$9:$D$1177,$A13,現金!$C$9:$C$1177) -> 0 | C13: =IF(入力項目リスト!$A44="","",入力項目リスト!$A44) ->  | D13: =SUMIF(現金!$B$9:$B$1177,$C13,現金!$C$9:$C$1177) -> 0
A14: =IF(入力項目リスト!$A13="","",入力項目リスト!$A13) ->  | B14: =SUMIF(現金!$D$9:$D$1177,$A14,現金!$C$9:$C$1177) -> 0 | C14: =IF(入力項目リスト!$A45="","",入力項目リスト!$A45) ->  | D14: =SUMIF(現金!$B$9:$B$1177,$C14,現金!$C$9:$C$1177) -> 0
A15: =IF(入力項目リスト!$A14="","",入力項目リスト!$A14) ->  | B15: =SUMIF(現金!$D$9:$D$1177,$A15,現金!$C$9:$C$1177) -> 0 | C15: =IF(入力項目リスト!$A46="","",入力項目リスト!$A46) ->  | D15: =SUMIF(現金!$B$9:$B$1177,$C15,現金!$C$9:$C$1177) -> 0
A16: =IF(入力項目リスト!$A15="","",入力項目リスト!$A15) ->  | B16: =SUMIF(現金!$D$9:$D$1177,$A16,現金!$C$9:$C$1177) -> 0 | C16: =IF(入力項目リスト!$A47="","",入力項目リスト!$A47) ->  | D16: =SUMIF(現金!$B$9:$B$1177,$C16,現金!$C$9:$C$1177) -> 0
A17: =IF(入力項目リスト!$A16="","",入力項目リスト!$A16) -> ▲補助金返金 | B17: =SUMIF(現金!$D$9:$D$1177,$A17,現金!$C$9:$C$1177) -> 0 | C17: =IF(入力項目リスト!$A48="","",入力項目リスト!$A48) ->  | D17: =SUMIF(現金!$B$9:$B$1177,$C17,現金!$C$9:$C$1177) -> 0
A18: 合 計 | B18: =SUM(B3:B17) -> 117000 | C18: 合 計 | D18: =SUM(D3:D17) -> 117000
A20: 【支出の部】
A21: 科目 | B21: 金額 | C21: 事業別 | D21: 金額
A22: =IF(入力項目リスト!$A18="","",入力項目リスト!$A18) -> 報償費 | B22: =SUMIF(現金!$F$9:$F$1177,$A22,現金!$E$9:$E$1177) -> 85000 | C22: =IF(入力項目リスト!$A34="","",入力項目リスト!$A34) -> ★春の研修会 | D22: =SUMIF(現金!$B$9:$B$1177,$C22,現金!$E$9:$E$1177) -> 37000
A23: =IF(入力項目リスト!$A19="","",入力項目リスト!$A19) -> 交通費 | B23: =SUMIF(現金!$F$9:$F$1177,$A23,現金!$E$9:$E$1177) -> 0 | C23: =IF(入力項目リスト!$A35="","",入力項目リスト!$A35) -> ★秋の研修会 | D23: =SUMIF(現金!$B$9:$B$1177,$C23,現金!$E$9:$E$1177) -> 76000
A24: =IF(入力項目リスト!$A20="","",入力項目リスト!$A20) -> 消耗品 | B24: =SUMIF(現金!$F$9:$F$1177,$A24,現金!$E$9:$E$1177) -> 9500 | C24: =IF(入力項目リスト!$A36="","",入力項目リスト!$A36) -> 定例会 | D24: =SUMIF(現金!$B$9:$B$1177,$C24,現金!$E$9:$E$1177) -> 2500
A25: =IF(入力項目リスト!$A21="","",入力項目リスト!$A21) -> 印刷製本費 | B25: =SUMIF(現金!$F$9:$F$1177,$A25,現金!$E$9:$E$1177) -> 2000 | C25: =IF(入力項目リスト!$A37="","",入力項目リスト!$A37) -> 団体の運営事業 | D25: =SUMIF(現金!$B$9:$B$1177,$C25,現金!$E$9:$E$1177) -> 0
A26: =IF(入力項目リスト!$A22="","",入力項目リスト!$A22) -> 通信運搬費 | B26: =SUMIF(現金!$F$9:$F$1177,$A26,現金!$E$9:$E$1177) -> 0 | C26: =IF(入力項目リスト!$A38="","",入力項目リスト!$A38) ->  | D26: =SUMIF(現金!$B$9:$B$1177,$C26,現金!$E$9:$E$1177) -> 0
A27: =IF(入力項目リスト!$A23="","",入力項目リスト!$A23) -> 保険料 | B27: =SUMIF(現金!$F$9:$F$1177,$A27,現金!$E$9:$E$1177) -> 6000 | C27: =IF(入力項目リスト!$A39="","",入力項目リスト!$A39) ->  | D27: =SUMIF(現金!$B$9:$B$1177,$C27,現金!$E$9:$E$1177) -> 0
A28: =IF(入力項目リスト!$A24="","",入力項目リスト!$A24) -> 使用及び賃借料 | B28: =SUMIF(現金!$F$9:$F$1177,$A28,現金!$E$9:$E$1177) -> 11500 | C28: =IF(入力項目リスト!$A40="","",入力項目リスト!$A40) ->  | D28: =SUMIF(現金!$B$9:$B$1177,$C28,現金!$E$9:$E$1177) -> 0
A29: =IF(入力項目リスト!$A25="","",入力項目リスト!$A25) -> 原材料費 | B29: =SUMIF(現金!$F$9:$F$1177,$A29,現金!$E$9:$E$1177) -> 0 | C29: =IF(入力項目リスト!$A41="","",入力項目リスト!$A41) ->  | D29: =SUMIF(現金!$B$9:$B$1177,$C29,現金!$E$9:$E$1177) -> 0
A30: =IF(入力項目リスト!$A26="","",入力項目リスト!$A26) -> 食糧費 | B30: =SUMIF(現金!$F$9:$F$1177,$A30,現金!$E$9:$E$1177) -> 1500 | C30: =IF(入力項目リスト!$A42="","",入力項目リスト!$A42) ->  | D30: =SUMIF(現金!$B$9:$B$1177,$C30,現金!$E$9:$E$1177) -> 0
A31: =IF(入力項目リスト!$A27="","",入力項目リスト!$A27) -> 会費 | B31: =SUMIF(現金!$F$9:$F$1177,$A31,現金!$E$9:$E$1177) -> 0 | C31: =IF(入力項目リスト!$A43="","",入力項目リスト!$A43) ->  | D31: =SUMIF(現金!$B$9:$B$1177,$C31,現金!$E$9:$E$1177) -> 0
A32: =IF(入力項目リスト!$A28="","",入力項目リスト!$A28) -> 雑費 | B32: =SUMIF(現金!$F$9:$F$1177,$A32,現金!$E$9:$E$1177) -> 0 | C32: =IF(入力項目リスト!$A44="","",入力項目リスト!$A44) ->  | D32: =SUMIF(現金!$B$9:$B$1177,$C32,現金!$E$9:$E$1177) -> 0
A33: =IF(入力項目リスト!$A29="","",入力項目リスト!$A29) ->  | B33: =SUMIF(現金!$F$9:$F$1177,$A33,現金!$E$9:$E$1177) -> 0 | C33: =IF(入力項目リスト!$A45="","",入力項目リスト!$A45) ->  | D33: =SUMIF(現金!$B$9:$B$1177,$C33,現金!$E$9:$E$1177) -> 0
A34: =IF(入力項目リスト!$A30="","",入力項目リスト!$A30) ->  | B34: =SUMIF(現金!$F$9:$F$1177,$A34,現金!$E$9:$E$1177) -> 0 | C34: =IF(入力項目リスト!$A46="","",入力項目リスト!$A46) ->  | D34: =SUMIF(現金!$B$9:$B$1177,$C34,現金!$E$9:$E$1177) -> 0
A35: =IF(入力項目リスト!$A31="","",入力項目リスト!$A31) ->  | B35: =SUMIF(現金!$F$9:$F$1177,$A35,現金!$E$9:$E$1177) -> 0 | C35: =IF(入力項目リスト!$A47="","",入力項目リスト!$A47) ->  | D35: =SUMIF(現金!$B$9:$B$1177,$C35,現金!$E$9:$E$1177) -> 0
A36: =IF(入力項目リスト!$A32="","",入力項目リスト!$A32) ->  | B36: =SUMIF(現金!$F$9:$F$1177,$A36,現金!$E$9:$E$1177) -> 0 | C36: =IF(入力項目リスト!$A48="","",入力項目リスト!$A48) ->  | D36: =SUMIF(現金!$B$9:$B$1177,$C36,現金!$E$9:$E$1177) -> 0
A37: 合 計 | B37: =SUM(B22:B36) -> 115500 | C37: 合 計 | D37: =SUM(D22:D36) -> 115500
A39: 当期剰余金 | B39: =B18-B37 -> 1500
A40: 前期繰越金
A41: 次期繰越金 | B41: =SUM(B39:B40) -> 1500

Sheet 事業別集計
A5: 合計 / 収入 | B5: 事業名
A6: 行ラベル | B6: 団体の運営事業 | C6: ★春の研修会 | D6: ★秋の研修会 | E6: 総計
A7: 会費 | B7: 5000 | E7: 5000
A8: 事業収入 | C8: 25000 | D8: 2000 | E8: 27000
A9: 補助金収入 | C9: 50000 | E9: 50000
A10: 社会福祉協議会 支援金 | B10: 15000 | E10: 15000
A11: 寄附金収入 | B11: 20000 | E11: 20000
A12: 総計 | B12: 40000 | C12: 75000 | D12: 2000 | E12: 117000
A25: 合計 / 支出 | B25: 事業名
B26: ★春の研修会 | C26: ★春の研修会 集計 | D26: 定例会 | E26: 定例会 集計 | F26: ★秋の研修会 | H26: ★秋の研修会 集計 | I26: 総計
A27: 行ラベル | B27: 補助金対象 | D27: 対象外 | F27: 対象外 | G27: 補助金対象
A28: 報償費 | B28: 25000 | C28: 25000 | F28: 10000 | G28: 50000 | H28: 60000 | I28: 85000
A29: 使用及び賃借料 | B29: 2500 | C29: 2500 | D29: 1000 | E29: 1000 | G29: 8000 | H29: 8000 | I29: 11500
A30: 保険料 | B30: 6000 | C30: 6000 | I30: 6000
A31: 印刷製本費 | B31: 2000 | C31: 2000 | I31: 2000
A32: 消耗品 | B32: 1500 | C32: 1500 | G32: 8000 | H32: 8000 | I32: 9500
A33: 食糧費 | D33: 1500 | E33: 1500 | I33: 1500
A34: 総計 | B34: 37000 | C34: 37000 | D34: 2500 | E34: 2500 | F34: 10000 | G34: 66000 | H34: 76000 | I34: 115500

Sheet 補助金収支
A2: 様式第１３号（第１１条関係）
B4: 市川市市民活動団体事業補助金収支決算書
B6: 補助決定事業の名称：
B9: １【収 入】
B11: 項 目 | C11: 金 額 | D11: 説 明（積算等）
B12: =IF(入力項目リスト!A2="","",入力項目リスト!A2) -> 事業収入 | C12: 27000
B13: =IF(入力項目リスト!A3="","",入力項目リスト!A3) -> 寄附金収入 | C13: 0
B14: =IF(入力項目リスト!A4="","",入力項目リスト!A4) -> 補助金収入 | C14: 50000
B15: =IF(入力項目リスト!A5="","",入力項目リスト!A5) -> その他（助成金等） | C15: 0
B16: =IF(入力項目リスト!A6="","",入力項目リスト!A6) -> 会費充当 | C16: 36000
B17: =IF(入力項目リスト!A7="","",入力項目リスト!A7) -> 会費 | C17: 0
B18: =IF(入力項目リスト!A8="","",入力項目リスト!A8) -> 社会福祉協議会 支援金 | C18: 0
B19: =IF(入力項目リスト!A9="","",入力項目リスト!A9) -> 生命保険団体 助成金 | C19: 0
B20: =IF(入力項目リスト!A10="","",入力項目リスト!A10) -> 
B21: =IF(入力項目リスト!A11="","",入力項目リスト!A11) -> 
B22: =IF(入力項目リスト!A12="","",入力項目リスト!A12) -> 
B23: =IF(入力項目リスト!A13="","",入力項目リスト!A13) -> 
B24: =IF(入力項目リスト!A14="","",入力項目リスト!A14) -> 
B25: =IF(入力項目リスト!A15="","",入力項目リスト!A15) -> 
B26: =IF(入力項目リスト!A16="","",入力項目リスト!A16) -> ▲補助金返金 | C26: 0
B27: 合 計 | C27: =SUM(C12:C26) -> 113000
B29: ２【支 出】
B31: 項 目 | C31: 支出金額 | D31: うち補助対象金額 | E31: 説 明（積算等）
B32: =IF(入力項目リスト!A18="","",入力項目リスト!A18) -> 報償費 | C32: 85000 | D32: 75000
B33: =IF(入力項目リスト!A19="","",入力項目リスト!A19) -> 交通費 | C33: 0 | D33: 0
B34: =IF(入力項目リスト!A20="","",入力項目リスト!A20) -> 消耗品 | C34: 9500 | D34: 9500
B35: =IF(入力項目リスト!A21="","",入力項目リスト!A21) -> 印刷製本費 | C35: 2000 | D35: 2000
B36: =IF(入力項目リスト!A22="","",入力項目リスト!A22) -> 通信運搬費 | C36: 0 | D36: 0
B37: =IF(入力項目リスト!A23="","",入力項目リスト!A23) -> 保険料 | C37: 6000 | D37: 6000
B38: =IF(入力項目リスト!A24="","",入力項目リスト!A24) -> 使用及び賃借料 | C38: 10500 | D38: 10500
B39: =IF(入力項目リスト!A25="","",入力項目リスト!A25) -> 原材料費 | C39: 0 | D39: 0
B40: =IF(入力項目リスト!A26="","",入力項目リスト!A26) -> 食糧費 | C40: 0 | D40: 0
B41: =IF(入力項目リスト!A27="","",入力項目リスト!A27) -> 会費 | C41: 0 | D41: 0
B42: =IF(入力項目リスト!A28="","",入力項目リスト!A28) -> 雑費 | C42: 0 | D42: 0
B43: =IF(入力項目リスト!A29="","",入力項目リスト!A29) -> 
B44: =IF(入力項目リスト!A30="","",入力項目リスト!A30) -> 
B45: =IF(入力項目リスト!A31="","",入力項目リスト!A31) -> 
B46: =IF(入力項目リスト!A32="","",入力項目リスト!A32) -> 
B47: 合 計 | C47: =SUM(C32:C46) -> 113000 | D47: =SUM(D32:D46) -> 103000 | E47: =IF(SUM(C12:C26)=C47,"","（注意！）収入と支出の額が一致していません") -> 
B48: =IF($C$27=$C$47,"","収入支出差額") ->  | C48: =IF($C$27=$C$47,"",$C$27-$C$47) -> 
B49: ※ 領収書（原本）を添付してください。

Sheet 入力項目リスト
A1: 収入科目 | B1: 説明
A2: 事業収入 | B2: 事業実施時における参加費等の収入
A3: 寄附金収入 | B3: 寄附金
A4: 補助金収入 | B4: 市川市が概算払いする補助金
A5: その他（助成金等） | B5: 市川市以外からの助成金、補助金等
A6: 会費充当 | B6: ※市川市市民活動団体事業補助金の事業費に会費から充当する場合に使用
A7: 会費 | B7: （正会員／賛助会員）会費
A8: 社会福祉協議会 支援金
A9: 生命保険団体 助成金
A16: ▲補助金返金 | B16: 市川市市民活動団体事業補助金の返金時に使用
A17: 支出科目 | B17: 説明
A18: 報償費 | B18: 講演会、講習会、研究会等を行う場合において、専門的な技能・知識等を有する講師、指導者等の専門職への報償及び謝礼に要する費用として、１人１回当たり５万円（交通費を含む）を限度とする。 ※ 演劇等の上演料、専門スタッフへの謝礼を含む
A19: 交通費 | B19: ⑴ 交通費の実費相当額 ⑵ 補助対象事業の実施に不可欠な自動車等の駐車料金 ⑶ 公共交通機関がない場合、又は公共交通機関を使用するよりも明らかに経済的である場合において使用するタクシー等公共交通機関以外の運賃
A20: 消耗品 | B20: 補助対象事業に必要な税抜き単価１万円未満の物品、材料等の購入に要する費用
A21: 印刷製本費 | B21: 文書、パンフレット等の印刷及び製本に要する費用 なお、補助対象事業に要する経費の総額の２割に相当する額（その額に１円未満の端数が生じたときは、これを切り捨てた額）を限度とする。
A22: 通信運搬費 | B22: 通知、資材等の送付等に要する費用
A23: 保険料 | B23: 補助対象事業実施時のイベント保険掛金、ボランティア保険掛金等（火災、地震等の家屋に係るものは除く）
A24: 使用及び賃借料 | B24: 会場等の使用料、並びに車両、及び機材の借上料（当該車両の借上げに伴う燃料費で市長が必要と認めるものを含む）
A25: 原材料費 | B25: 物品の生産に係る原材料の購入に要する費用 ※ 演劇等の舞台衣装、メイク、楽譜に関する費用を含む。
A26: 食糧費 | B26: 定例会等のお茶菓子代
A27: 会費 | B27: 加盟団体の会費
A28: 雑費
A33: 事業名 | B33: 説明 | C33: 補助金申請対象事業
A34: ★春の研修会 | B34: 市民むけ研修会 | C34: 対象
A35: ★秋の研修会 | B35: 市民むけ研修会 | C35: 対象
A36: 定例会 | B36: 会員の定例会 | C36: 対象外
A37: 団体の運営事業 | B37: 会全体の運営費 | C37: 対象外
